[Event "USA Championship Women 2022"]
[Site "Saint Louis"]
[Date "2022.10.19"]
[Round "13.6"]
[White "Yan, Ruiyang"]
[Black "Tokhirjonova, Gulrukhbegim"]
[Result "1/2-1/2"]
[ECO "C58"]
[WhiteElo "2220"]
[BlackElo "2336"]
[Annotator "TA"]
[PlyCount "156"]
[EventDate "2022.09.05"]
[EventType "tourn"]
[EventCountry "USA"]
[SourceTitle "playchess.com"]
[Source "ChessBase"]
[SourceQuality "1"]
[TimeControl "40/5400+30:1800+30"]

{[%evp 14,156,27,42,38,22,39,27,29,23,18,31,33,19,8,14,52,0,0,0,0,0,0,0,0,0,52,0,0,0,0,0,0,-76,-76,-81,0,0,0,0,0,0,8,0,0,3,1,7,8,-14,0,0,0,0,0,-5,-5,-6,0,0,0,0,3,0,3,0,10,0,12,0,14,8,12,6,12,12,12,0,0,0,15,0,15,15,27,15,22,15,15,0,15,12,15,15,15,15,15,15,15,8,8,0,0,0,0,0,0,0,0,0,0,0,0,0,0,0,0,0,0,0,0,0,0,0,0,0,0,0,0,0,0,0,0,0,0,0,0,0,0,0,0,0,0,0,0]} 1. e4 {[%emt 0:00:04]} e5 {[%emt 0:00:13]} 2. Nf3 {[%emt 0:00:11]} Nc6 {[%emt 0:00:16]} 3. Bc4 {[%emt 0:00:25]} Nf6 {[%emt 0:00:15][%cal Bg8f6,Bf6d5,Bd5f4][%mdl 32]} 4. Ng5 {[%emt 0:06:00]} d5 {[%emt 0:00:25]} 5. exd5 {[%emt 0:00:07]} Na5 {[%emt 0:00:07]} 6. Bb5+ {[%emt 0:00:13]} c6 {[%emt 0:00:11]} 7. dxc6 {[%emt 0:00:05]} bxc6 {[%emt 0:00:05]} 8. Bd3 {[%emt 0:00:13]} Nd5 {[%emt 0:00:42] C58: Two Knights: 4 Ng5 d5 5 exd5 Na5 sidelines.} 9. Nf3 {[%emt 0:03:17]} (9. Qh5 g6 10. Nxf7 gxh5 $17) 9... Nf4 {[%emt 0:08:23]} 10. O-O {[%emt 0:00:31]} Bd6 {[%emt 0:07:51] White has an edge. has lost popularity (10...Nxd3).} 11. Re1 {[%emt 0:03:36] 11.Nc3 is more advanced technology.} Nxd3 {[%emt 0:05:02]} 12. cxd3 {[%emt 0:00:09]} O-O {[%emt 0:00:08]} 13. Nc3 {[%emt 0:03:59]} Re8 {[%emt 0:02:33]} 14. Ne4 {[%emt 0:15:27]} Bf8 {[%emt 0:00:49]} 15. Ng3 {[%emt 0:07:54] [#]} (15. b4 $1 $14 Nb7 16. Bb2) 15... c5 $146 {[%emt 0:08:52]} ({Predecessor:} 15... Qxd3 16. Rxe5 Rxe5 17. Nxe5 Qd5 18. d4 f6 19. Nf3 c5 20. Bd2 cxd4 21. Bxa5 Qxa5 22. Qb3+ Kh8 23. Nxd4 Qd8 24. Rd1 Bg4 25. Nf3 Qe7 {½-½ (25) Ankit,R (2349)-Neelotpal,D (2471) New Delhi 2012}) 16. Nxe5 {[%emt 0:12:40]} Bb7 {[%emt 0:01:04] Prevents Qf3.} 17. Re3 {[%emt 0:04:22]} (17. Qh5 Qd5 18. Nf3 Rxe1+ 19. Nxe1 Re8 $17) 17... Qd5 {[%emt 0:06:08][%csl Gb7,LRe5,LRg2][%cal Rd5g2] [#]} 18. Nf3 {[%emt 0:00:32]} Nc6 {[%emt 0:00:14]} 19. b3 {[%emt 0:07:03]} f5 {[%emt 0:03:32]} ({Black should try} 19... Nb4 $11) 20. Ne2 {[%emt 0:04:26]} (20. Nh5 $14) 20... Ne5 {[%emt 0:10:25][%cal Re5f3]} 21. Nf4 {[%emt 0:07:40]} Nxf3+ {[%emt 0:05:41]} 22. Qxf3 {[%emt 0:00:07][%mdl 64] Pin} Qd7 {[%emt 0:00:19]} 23. Qe2 {[%emt 0:08:29]} (23. Qg3 $11 {keeps the balance.}) 23... Bd6 $17 {[%emt 0:00:43]} 24. g3 {[%emt 0:01:56] [#]} (24. Rxe8+ $2 Rxe8 25. Qf1 Bxf4 $19) 24... Bxf4 {[%emt 0:19:41]} ({Much less strong is} 24... Qc6 25. f3 $16) ({Better is} 24... Be5 $1 $17 {[%cal Re5a1]} 25. Rb1 (25. Rxe5 $2 Rxe5 26. Qf1 g5 $19) 25... g5) 25. gxf4 $11 {[%emt 0:00:07]} g5 {[%emt 0:00:47]} ({Resist} 25... Qc6 26. f3 $16) 26. Qh5 {[%emt 0:04:42] Black must now prevent Bb2.} gxf4 {[%emt 0:00:54]} 27. Qg5+ {[%emt 0:00:16]} Qg7 $132 {[%emt 0:00:29][%mdl 2048] Black is not keeping still} 28. Qxg7+ {[%emt 0:00:06]} Kxg7 {[%emt 0:00:05]} 29. Bb2+ {[%emt 0:00:09]} Kf7 $1 {[%emt 0:00:54]} 30. Rxe8 {[%emt 0:02:30]} Rxe8 {[%emt 0:00:02][%mdl 4096] Endgame KRB-KRB} 31. Kf1 {[%emt 0:00:15]} Ba6 {[%emt 0:00:52] ...f3 is the strong threat.} 32. f3 {[%emt 0:05:35]} Bxd3+ {[%emt 0:00:07]} 33. Kg1 {[%emt 0:00:05]} Re2 {[%emt 0:03:57]} 34. Rc1 {[%emt 0:00:21]} Rxd2 {[%emt 0:02:04]} 35. Be5 {[%emt 0:00:07]} Rxa2 {[%emt 0:00:07]} 36. Rxc5 {[%emt 0:00:06]} h5 {[%emt 0:03:38]} 37. Bxf4 {[%emt 0:00:21]} a6 {[%emt 0:00:59]} 38. Rc7+ {[%emt 0:00:08]} Ke6 {[%emt 0:00:10]} 39. Rc6+ {[%emt 0:00:06]} Ke7 {[%emt 0:00:52]} 40. Rc7+ {[%emt 0:00:07]} Kd8 {[%emt 0:05:06]} 41. Rc5 {[%emt 0:30:25] And now Rd5+ would win.} Bc2 {[%emt 0:30:57]} 42. b4 {[%emt 0:00:10]} Kd7 {[%emt 0:01:15]} 43. Ra5 {[%emt 0:00:11]} Rb2 {[%emt 0:02:09]} 44. Rxa6 {[%emt 0:00:16]} Rxb4 {[%emt 0:00:11]} 45. Ra7+ {[%emt 0:00:32]} Ke6 {[%emt 0:00:17]} 46. Ra6+ {[%emt 0:00:50]} Kd5 {[%emt 0:01:22]} 47. Ra5+ {[%emt 0:00:07]} Kc4 {[%emt 0:01:34]} 48. Kf2 {[%emt 0:00:34]} Bb1 {[%emt 0:01:08]} 49. Be5 {[%emt 0:02:21]} Rb3 {[%emt 0:00:00] The position is equal.} 50. Ra4+ {[%emt 0:00:00]} Kd5 {[%emt 0:00:00]} 51. Ra5+ {[%emt 0:00:00]} Ke6 {[%emt 0:00:00]} 52. Bf4 {[%emt 0:00:00]} Bd3 {[%emt 0:00:00]} 53. Re5+ {[%emt 0:00:00]} Kf6 {[%emt 0:00:00]} 54. Rd5 {[%emt 0:00:00]} Bc4 {[%emt 0:00:00]} 55. Rd6+ {[%emt 0:00:00]} Ke7 {[%emt 0:00:00]} 56. Rd4 {[%emt 0:00:00]} Ba6 {[%emt 0:00:00]} 57. Rd5 {[%emt 0:00:00]} Bb7 {[%emt 0:00:00]} 58. Rxf5 {[%emt 0:00:00]} Rxf3+ {[%emt 0:00:00]} 59. Ke2 {[%emt 0:00:00] Hoping for Bg5+.} Ke6 {[%emt 0:00:00]} 60. Rf8 {[%emt 0:00:00]} Rb3 {[%emt 0:00:00]} 61. Bg3 {[%emt 0:00:00]} Bc6 {[%emt 0:00:00]} 62. Rb8 {[%emt 0:00:00]} Ra3 {[%emt 0:00:00]} 63. Rd8 {[%emt 0:00:00] Threatens to win with Rd6+.} Bf3+ {[%emt 0:00:00]} 64. Kf2 {[%emt 0:00:00]} Bg4 {[%emt 0:00:00]} 65. Re8+ {[%emt 0:00:00]} Kf7 {[%emt 0:00:00]} 66. Rd8 {[%emt 0:00:00]} Ra2+ {[%emt 0:00:00]} 67. Ke3 {[%emt 0:00:00]} Ra4 {[%emt 0:00:00]} 68. Rd4 {[%emt 0:00:00]} Rxd4 {[%emt 0:00:00]} 69. Kxd4 {[%emt 0:00:00] KB-KB} Kg6 {[%emt 0:00:00]} 70. Ke3 {[%emt 0:00:00]} Kg5 {[%emt 0:00:00]} 71. Bb8 {[%emt 0:00:00]} h4 {[%emt 0:00:00]} 72. Bc7 {[%emt 0:00:00]} Bd7 {[%emt 0:00:00]} 73. Bb8 {[%emt 0:00:00]} Bc8 {[%emt 0:00:00]} 74. Bc7 {[%emt 0:00:00]} Bd7 {[%emt 0:00:00]} 75. Bb8 {[%emt 0:00:00]} Bc8 {[%emt 0:00:00]} 76. Bc7 {[%emt 0:00:00]} Bd7 {[%emt 0:00:00]} 77. Bb8 {[%emt 0:00:00]} Bc8 {[%emt 0:00:00]} 78. Bc7 {[%emt 0:00:00]} Bd7 {[%emt 0:00:00] Weighted Error Value: White=0.08 (flawless) /Black=0.08 (flawless)} 1/2-1/2

[Event "USA Championship Women 2022"]
[Site "Saint Louis"]
[Date "2022.10.19"]
[Round "13.7"]
[White "Paikidze, Nazi"]
[Black "Abrahamyan, Tatev"]
[Result "0-1"]
[ECO "D24"]
[WhiteElo "2354"]
[BlackElo "2308"]
[Annotator "TA"]
[PlyCount "88"]
[EventDate "2022.09.05"]
[EventType "tourn"]
[EventCountry "USA"]
[SourceTitle "playchess.com"]
[Source "ChessBase"]
[SourceQuality "1"]
[TimeControl "40/5400+30:1800+30"]

{[%evp 9,88,22,48,44,41,40,51,42,49,36,39,43,50,41,54,17,16,14,21,14,22,-32,-28,-123,-85,-178,-185,-172,-129,-120,-114,-192,-180,-253,-296,-265,-194,-241,-233,-335,-174,-185,-193,-183,-195,-193,-185,-198,-183,-190,-192,-178,-140,-445,-445,-425,-358,-477,-503,-492,-491,-479,-502,-489,-483,-619,-611,-611,-610,-981,-964,-1323,-1318,-1260,-1186,-1249,-1066,-2054,-1837,-1488,-959]} 1. d4 {[%emt 0:00:03]} Nf6 {[%emt 0:00:05]} 2. c4 {[%emt 0:00:05]} e6 {[%emt 0:00:02]} 3. Nf3 {[%emt 0:00:05]} d5 {[%emt 0:00:23]} 4. Nc3 {[%emt 0:00:14]} dxc4 {[%emt 0:05:17]} 5. e4 {[%emt 0:01:07]} b5 {[%emt 0:00:11]} 6. e5 {[%emt 0:00:08] D24: Queen's Gambit Accepted: 3 Nf3 Nf6 4 Nc3.} Nd5 {[%emt 0:00:02]} 7. Nxb5 {[%emt 0:00:06]} Nb6 {[%emt 0:00:14]} 8. Be3 {[%emt 0:00:06] White is slightly better.} Nc6 {[%emt 0:00:40]} 9. Be2 {[%emt 0:00:17]} Be7 {[%emt 0:00:38]} 10. O-O {[%emt 0:00:25]} O-O {[%emt 0:00:59]} 11. Nc3 {[%emt 0:00:05]} Bb7 {[%emt 0:01:41]} 12. a3 {[%emt 0:03:41]} Rb8 {[%emt 0:05:32]} 13. Qc2 {[%emt 0:04:28]} Na5 {[%emt 0:06:20]} 14. Rad1 {[%emt 0:12:17] [#]} Bc6 $146 {[%emt 0:08:29]} ({Predecessor:} 14... h6 15. Nd2 Qd7 16. f4 Nd5 17. Nxd5 Bxd5 18. Qc3 Rb5 19. Nxc4 Nxc4 20. Bxc4 Bxc4 21. Qxc4 Rxb2 {½-½ (61) Mamedyarov,S (2801)-Caruana,F (2822) Saint Louis 2018}) 15. d5 {[%emt 0:27:11]} (15. Nd2 $11) 15... exd5 $15 {[%emt 0:14:38]} 16. Nd4 {[%emt 0:03:20]} (16. Rfe1 $11) 16... Bb7 {[%emt 0:12:27]} 17. e6 {[%emt 0:01:15] [#]} (17. Na4 $17) 17... c5 $1 $19 {[%emt 0:04:14]} 18. exf7+ {[%emt 0:01:07]} Rxf7 {[%emt 0:00:09]} 19. Ne6 {[%emt 0:01:16]} Qc8 {[%emt 0:02:32]} 20. Bg4 {[%emt 0:02:33] [#]} (20. Bf4 $17 {was called for.}) 20... Qc6 $1 {[%emt 0:03:32]} 21. Nf4 {[%emt 0:04:09]} (21. Bg5 $142) 21... d4 {[%emt 0:05:23]} 22. Be6 {[%emt 0:00:23]} dxc3 {[%emt 0:06:50] The board is on fire.} 23. bxc3 {[%emt 0:05:08]} (23. Bxf7+ $142 Kxf7 24. bxc3) 23... Rbf8 {[%emt 0:02:38] Threatens to win with ...g5.} 24. Qf5 {[%emt 0:06:22]} (24. Bxf7+ $142 Rxf7 25. f3) 24... Qe4 {[%emt 0:04:38]} (24... Nb3 $142 {Strongly threatening ...Bc8.} 25. Qh5 Bf6) 25. Nd5 {[%emt 0:05:37]} Bxd5 {[%emt 0:05:28]} ({Don't play} 25... Qxf5 26. Nxe7+ Kh8 27. Nxf5 $18 (27. Bxf5 Rxe7 28. Bxc5 Nd5 $15)) 26. Rxd5 {[%emt 0:00:05]} Qxf5 {[%emt 0:00:06]} 27. Rxf5 {[%emt 0:00:04]} g6 {[%emt 0:00:24]} 28. Rf3 {[%emt 0:05:39] Bh6 is the strong threat.} Kg7 {[%emt 0:01:36] Inhibits Bh6+.} 29. Bxf7 {[%emt 0:00:11]} Rxf7 {[%emt 0:00:01]} 30. Bh6+ {[%emt 0:00:13]} Kg8 {[%emt 0:00:03]} 31. Re1 $2 {[%emt 0:00:24][%mdl 8192] Now White is beyond hope.} (31. Re3 $17) 31... Rxf3 {[%emt 0:02:33]} 32. gxf3 {[%emt 0:10:25]} Kf7 {[%emt 0:00:20] Hoping for ...Bf6.} 33. Bf4 {[%emt 0:00:50]} Nd5 {[%emt 0:04:05] Black is clearly winning.} 34. Be5 {[%emt 0:00:06]} Nc6 {[%emt 0:00:29]} 35. Bh8 {[%emt 0:01:11]} Bf6 {[%emt 0:02:32]} 36. Bxf6 {[%emt 0:00:10]} Kxf6 {[%emt 0:00:02]} 37. Re4 {[%emt 0:01:42]} Ne5 {[%emt 0:01:52]} 38. f4 {[%emt 0:00:45]} Nf3+ {[%emt 0:00:22]} 39. Kg2 {[%emt 0:01:48]} Nd2 {[%emt 0:00:48]} 40. Re1 {[%emt 0:00:33]} Nxc3 {[%emt 0:00:57]} 41. f3 {[%emt 0:32:46]} Nd5 {[%emt 0:05:01]} 42. Kf2 {[%emt 0:00:00]} Nb3 {[%emt 0:00:54]} 43. Ke2 {[%emt 0:00:00]} Nd4+ {[%emt 0:03:31]} 44. Kd1 {[%emt 0:00:00]} c3 {[%emt 0:00:16] Weighted Error Value: White=0.68/Black=0.24 (precise)} 0-1